[Event "56th Biel Festival Rapid 2023"]
[Site "Biel"]
[Date "2024.04.13"]
[Round "2.34"]
[White "Illijin Neboisa"]
[Black "Dittmar, Michael"]
[Result "*"]
[WhiteElo "2140"]
[BlackElo "1706"]
[PlyCount "77"]
[EventDate "2023.07.16"]
[EventType "swiss"]
[EventCountry "SUI"]
[TimeControl "900+5"]

1. e4 {[%emt 0:00:04]} e6 {[%emt 0:00:05]} 2. d4 {[%emt 0:00:05]} d5 {[%emt 0:00:04]} 3. e5 {[%emt 0:00:01]} Bd7 {[%emt 0:00:12]} 4. Nf3 {[%emt 0:00:02]} a6 {[%emt 0:00:07]} 5. c4 {[%emt 0:00:01]} dxc4 {[%emt 0:00:15]} 6. Bxc4 {[%emt 0:00:15]} Bc6 {[%emt 0:00:03]} 7. O-O {[%emt 0:00:01]} Ne7 {[%emt 0:00:20]} 8. Nc3 {[%emt 0:00:42]} Nd5 {[%emt 0:00:57]} 9. Bg5 {[%emt 0:00:31]} Be7 {[%emt 0:00:40]} 10. Bxe7 {[%emt 0:00:05]} Kxe7 {[%emt 0:00:04]} 11. Qd2 {[%emt 0:01:02]} h6 {[%emt 0:02:20]} 12. Bxd5 {[%emt 0:00:16]} Bxd5 {[%emt 0:00:34]} 13. Nxd5+ {[%emt 0:00:06]} Qxd5 {[%emt 0:00:09]} 14. Rac1 {[%emt 0:00:02]} Nc6 {[%emt 0:01:57]} 15. a3 {[%emt 0:00:58]} Rhd8 {[%emt 0:00:01]} 16. Rfd1 {[%emt 0:01:07]} Kf8 {[%emt 0:00:29]} 17. Qf4 {[%emt 0:00:19]} Rac8 {[%emt 0:00:07]} 18. h4 {[%emt 0:01:03]} Ne7 {[%emt 0:00:22]} 19. Rd2 {[%emt 0:00:19]} c6 {[%emt 0:01:35]} 20. g4 {[%emt 0:01:16]} Qa5 {[%emt 0:00:23]} 21. Rc5 {[%emt 0:00:46]} Qc7 {[%emt 0:00:28]} 22. g5 {[%emt 0:00:15]} Ng6 {[%emt 0:00:14]} 23. Qe4 {[%emt 0:00:33]} Rd5 {[%emt 0:00:05]} 24. Rc3 {[%emt 0:00:06]} Rcd8 {[%emt 0:00:13]} 25. gxh6 {[%emt 0:00:12]} gxh6 {[%emt 0:00:15]} 26. h5 {[%emt 0:00:15]} Ke7 {[%emt 0:00:15]} 27. hxg6 {[%emt 0:00:13]} Rg8 {[%emt 0:00:07]} 28. Qh4+ {[%emt 0:00:06]} Kd7 {[%emt 0:00:07]} 29. Nh2 {[%emt 0:00:38]} Rxg6+ {[%emt 0:01:14]} 30. Kh1 {[%emt 0:00:04]} Qa5 {[%emt 0:00:01]} 31. Ng4 {[%emt 0:00:25]} Qb5 {[%emt 0:00:31]} 32. Nf6+ {[%emt 0:01:04]} Kc8 {[%emt 0:01:22]} 33. Rcd3 {[%emt 0:00:07]} Qc4 {[%emt 0:00:13]} 34. Nxd5 {[%emt 0:00:36]} Qxd5+ {[%emt 0:00:16]} 35. f3 {[%emt 0:00:09]} Qa2 {[%emt 0:00:07]} 36. Qe7 {[%emt 0:00:18]} Qb1+ {[%emt 0:00:06]} 37. Rd1 {[%emt 0:00:18]} Qc2 {[%emt 0:00:00]} 38. Qe8+ {[%emt 0:00:29]} Kc7 {[%emt 0:00:03]} 39. Qxf7+ {[%emt 0:00:06]} *

[Event "56th Biel Festival Rapid 2023"]
[Site "Biel"]
[Date "2024.04.13"]
[Round "2.35"]
[White "Schweizer, Simon"]
[Black "Hies, Norbert"]
[Result "1-0"]
[WhiteElo "2123"]
[BlackElo "1529"]
[PlyCount "89"]
[EventDate "2023.07.16"]
[EventType "swiss"]
[EventCountry "SUI"]
[TimeControl "900+5"]

1. e4 {[%emt 0:00:06]} e5 {[%emt 0:00:04]} 2. Nf3 {[%emt 0:00:01]} Nc6 {[%emt 0:00:09]} 3. Nc3 {[%emt 0:00:02]} Nf6 {[%emt 0:00:07]} 4. g3 {[%emt 0:00:01]} Bc5 {[%emt 0:00:23]} 5. Bg2 {[%emt 0:00:02]} O-O {[%emt 0:00:08]} 6. Nxe5 {[%emt 0:00:02]} d6 {[%emt 0:00:28]} 7. Nxc6 {[%emt 0:00:06]} bxc6 {[%emt 0:00:02]} 8. d4 {[%emt 0:00:02]} Bb4 {[%emt 0:00:13]} 9. O-O {[%emt 0:00:03]} Ba6 {[%emt 0:00:02]} 10. Re1 {[%emt 0:00:02]} Re8 {[%emt 0:00:13]} 11. a3 {[%emt 0:00:07]} Ba5 {[%emt 0:00:12]} 12. b4 {[%emt 0:00:05]} Bb6 {[%emt 0:00:06]} 13. Bb2 {[%emt 0:00:02]} Bb7 {[%emt 0:00:26]} 14. Qd3 {[%emt 0:00:51]} Qd7 {[%emt 0:00:49]} 15. Na4 {[%emt 0:00:13]} Rad8 {[%emt 0:00:58]} 16. Rad1 {[%emt 0:00:14]} h6 {[%emt 0:01:18]} 17. h3 {[%emt 0:00:12]} Qc8 {[%emt 0:00:19]} 18. c4 {[%emt 0:00:13]} a6 {[%emt 0:00:37]} 19. Qc2 {[%emt 0:00:13]} Ba7 {[%emt 0:00:31]} 20. c5 {[%emt 0:00:05]} d5 {[%emt 0:00:41]} 21. e5 {[%emt 0:00:06]} Nd7 {[%emt 0:00:23]} 22. f4 {[%emt 0:00:07]} Nf8 {[%emt 0:00:14]} 23. f5 {[%emt 0:00:13]} Kh8 {[%emt 0:00:22]} 24. h4 {[%emt 0:00:09]} Re7 {[%emt 0:01:49]} 25. Kh2 {[%emt 0:00:10]} Rde8 {[%emt 0:00:16]} 26. Bh3 {[%emt 0:00:03]} Qd8 {[%emt 0:00:09]} 27. Qd2 {[%emt 0:00:05]} Bc8 {[%emt 0:00:39]} 28. Bc1 {[%emt 0:00:04]} Nh7 {[%emt 0:00:09]} 29. Nb2 {[%emt 0:00:10]} Kg8 {[%emt 0:00:46]} 30. Nd3 {[%emt 0:00:04]} f6 {[%emt 0:00:11]} 31. e6 {[%emt 0:00:57]} Rf8 {[%emt 0:00:19]} 32. Nf4 {[%emt 0:00:02]} Qe8 {[%emt 0:01:12]} 33. Ng6 {[%emt 0:00:15]} Qd8 {[%emt 0:00:04]} 34. Qf2 {[%emt 0:00:10]} Rfe8 {[%emt 0:00:10]} 35. Bf4 {[%emt 0:00:05]} Nf8 {[%emt 0:00:14]} 36. Nxe7+ {[%emt 0:00:03]} Qxe7 {[%emt 0:00:23]} 37. g4 {[%emt 0:00:02]} Nh7 {[%emt 0:00:29]} 38. Qg3 {[%emt 0:00:02]} Kh8 {[%emt 0:00:09]} 39. Rg1 {[%emt 0:00:05]} Rg8 {[%emt 0:00:13]} 40. g5 {[%emt 0:00:31]} fxg5 {[%emt 0:00:42]} 41. hxg5 {[%emt 0:00:03]} hxg5 {[%emt 0:00:13]} 42. Be5 {[%emt 0:00:09]} Bb8 {[%emt 0:00:54]} 43. Bg4 {[%emt 0:00:04]} Rf8 {[%emt 0:00:31]} 44. Rh1 {[%emt 0:00:05]} Kg8 {[%emt 0:00:04]} 45. Kg2 {[%emt 0:00:05]} 1-0

[Event "56th Biel Festival Rapid 2023"]
[Site "Biel"]
[Date "2024.04.13"]
[Round "2.36"]
[White "Markus, David"]
[Black "Baghirov, Rasul"]
[Result "*"]
[WhiteElo "1384"]
[BlackElo "1992"]
[PlyCount "52"]
[EventDate "2023.07.16"]
[EventType "swiss"]
[EventCountry "SUI"]
[TimeControl "900+5"]

1. e4 {[%emt 0:00:03]} c5 {[%emt 0:00:03]} 2. Nf3 {[%emt 0:00:08]} Nc6 {[%emt 0:00:05]} 3. Bb5 {[%emt 0:00:04]} e6 {[%emt 0:00:03]} 4. Bxc6 {[%emt 0:00:03]} bxc6 {[%emt 0:00:02]} 5. O-O {[%emt 0:00:06]} c4 {[%emt 0:00:02]} 6. d3 {[%emt 0:00:11]} cxd3 {[%emt 0:00:03]} 7. Qxd3 {[%emt 0:00:07]} d5 {[%emt 0:00:04]} 8. Nc3 {[%emt 0:00:08]} Nf6 {[%emt 0:00:18]} 9. Re1 {[%emt 0:00:10]} Be7 {[%emt 0:00:04]} 10. h3 {[%emt 0:00:18]} O-O {[%emt 0:00:10]} 11. Bf4 {[%emt 0:00:11]} Qb6 {[%emt 0:00:52]} 12. Rab1 {[%emt 0:00:45]} Ba6 {[%emt 0:00:05]} 13. Qd2 {[%emt 0:00:01]} Rfd8 {[%emt 0:00:42]} 14. exd5 {[%emt 0:02:17]} cxd5 {[%emt 0:00:26]} 15. Ne5 {[%emt 0:00:46]} Rac8 {[%emt 0:00:41]} 16. Ne2 {[%emt 0:02:35]} Ne4 {[%emt 0:00:12]} 17. Qe3 {[%emt 0:01:54]} Bc5 {[%emt 0:00:03]} 18. Qf3 {[%emt 0:00:24]} Bxf2+ {[%emt 0:00:20]} 19. Kh2 {[%emt 0:00:14]} Bxe1 {[%emt 0:00:19]} 20. Rxe1 {[%emt 0:00:09]} Rxc2 {[%emt 0:00:50]} 21. Nxf7 {[%emt 0:02:32]} Rf8 {[%emt 0:00:07]} 22. Ne5 {[%emt 0:01:45]} Bxe2 {[%emt 0:00:26]} 23. Rxe2 {[%emt 0:00:48]} Rxe2 {[%emt 0:00:03]} 24. Nd7 {[%emt 0:00:51]} Rxf4 {[%emt 0:01:32]} 25. Qxf4 {[%emt 0:00:14]} Qd6 {[%emt 0:00:02]} 26. Ne5 {[%emt 0:00:10]} Nf6 {[%emt 0:00:07]} *

[Event "56th Biel Festival Rapid 2023"]
[Site "Biel"]
[Date "2024.04.13"]
[Round "2.37"]
[White "Ristevski, Sasko"]
[Black "Sai Mahati A"]
[Result "*"]
[WhiteElo "1925"]
[BlackElo "1669"]
[PlyCount "84"]
[EventDate "2023.07.16"]
[EventType "swiss"]
[EventCountry "SUI"]
[TimeControl "900+5"]

1. d4 {[%emt 0:00:02]} d5 {[%emt 0:00:00]} 2. Nf3 {[%emt 0:00:03]} Nf6 {[%emt 0:00:04]} 3. e3 {[%emt 0:00:04]} Bg4 {[%emt 0:00:20]} 4. h3 {[%emt 0:00:08]} Bh5 {[%emt 0:00:03]} 5. g4 {[%emt 0:00:05]} Bg6 {[%emt 0:00:02]} 6. Ne5 {[%emt 0:00:04]} Nbd7 {[%emt 0:00:19]} 7. h4 {[%emt 0:00:30]} h6 {[%emt 0:05:25]} 8. Nxg6 {[%emt 0:00:07]} fxg6 {[%emt 0:00:01]} 9. Bd3 {[%emt 0:00:13]} Nb6 {[%emt 0:00:29]} 10. Bxg6+ {[%emt 0:00:15]} Kd7 {[%emt 0:00:01]} 11. Qe2 {[%emt 0:03:58]} e6 {[%emt 0:00:43]} 12. Nd2 {[%emt 0:00:20]} Bd6 {[%emt 0:01:25]} 13. b3 {[%emt 0:01:59]} Qe7 {[%emt 0:01:31]} 14. Bb2 {[%emt 0:00:16]} Raf8 {[%emt 0:01:12]} 15. O-O-O {[%emt 0:00:24]} Kc8 {[%emt 0:00:03]} 16. f4 {[%emt 0:01:14]} Kb8 {[%emt 0:00:21]} 17. Kb1 {[%emt 0:00:43]} a5 {[%emt 0:00:21]} 18. g5 {[%emt 0:00:15]} Nfd7 {[%emt 0:00:16]} 19. Nf3 {[%emt 0:00:29]} a4 {[%emt 0:00:19]} 20. Ne5 {[%emt 0:00:16]} Nxe5 {[%emt 0:00:05]} 21. dxe5 {[%emt 0:00:16]} Ba3 {[%emt 0:00:02]} 22. Qb5 {[%emt 0:00:46]} axb3 {[%emt 0:00:22]} 23. axb3 {[%emt 0:00:18]} Bc5 {[%emt 0:00:26]} 24. Qd3 {[%emt 0:00:20]} Ka7 {[%emt 0:01:56]} 25. c3 {[%emt 0:00:14]} Qd7 {[%emt 0:00:21]} 26. Kc2 {[%emt 0:00:07]} Ra8 {[%emt 0:00:52]} 27. Ra1+ {[%emt 0:01:00]} Kb8 {[%emt 0:00:01]} 28. h5 {[%emt 0:00:45]} hxg5 {[%emt 0:00:06]} 29. fxg5 {[%emt 0:00:01]} Rf8 {[%emt 0:00:06]} 30. Rxa8+ {[%emt 0:00:07]} Kxa8 {[%emt 0:00:05]} 31. Rf1 {[%emt 0:00:05]} Qe7 {[%emt 0:00:12]} 32. b4 {[%emt 0:01:27]} Rxf1 {[%emt 0:00:08]} 33. Qxf1 {[%emt 0:00:01]} Bxe3 {[%emt 0:00:02]} 34. h6 {[%emt 0:00:28]} gxh6 {[%emt 0:00:03]} 35. gxh6 {[%emt 0:00:02]} Bxh6 {[%emt 0:00:07]} 36. Qf7 {[%emt 0:00:20]} Qg5 {[%emt 0:00:08]} 37. Kb3 {[%emt 0:00:10]} Qg4 {[%emt 0:00:05]} 38. Bd3 {[%emt 0:00:11]} Nc4 {[%emt 0:00:02]} 39. Qe8+ {[%emt 0:00:03]} Ka7 {[%emt 0:00:02]} 40. Qa4+ {[%emt 0:00:02]} Kb8 {[%emt 0:00:01]} 41. Qe8+ {[%emt 0:00:01]} Ka7 {[%emt 0:00:01]} 42. Qa4+ {[%emt 0:00:02]} Kb8 {[%emt 0:00:01]} *

[Event "56th Biel Festival Rapid 2023"]
[Site "Biel"]
[Date "2024.04.13"]
[Round "2.38"]
[White "Dorand, Jean-Pierre"]
[Black "von Burg, Carl Alexander"]
[Result "*"]
[WhiteElo "1885"]
[BlackElo "1537"]
[PlyCount "79"]
[EventDate "2023.07.16"]
[EventType "swiss"]
[EventCountry "SUI"]
[TimeControl "900+5"]

1. c4 {[%emt 0:00:05]} c6 {[%emt 0:00:05]} 2. Nf3 {[%emt 0:00:04]} d5 {[%emt 0:00:03]} 3. cxd5 {[%emt 0:00:02]} cxd5 {[%emt 0:00:02]} 4. d4 {[%emt 0:00:02]} Nc6 {[%emt 0:00:01]} 5. Bf4 {[%emt 0:00:09]} Bf5 {[%emt 0:00:03]} 6. Nc3 {[%emt 0:02:09]} e6 {[%emt 0:00:03]} 7. e3 {[%emt 0:00:08]} a6 {[%emt 0:00:02]} 8. Bd3 {[%emt 0:01:38]} Bxd3 {[%emt 0:00:23]} 9. Qxd3 {[%emt 0:00:15]} Nf6 {[%emt 0:00:02]} 10. h3 {[%emt 0:00:15]} Bd6 {[%emt 0:00:08]} 11. Bxd6 {[%emt 0:00:08]} Qxd6 {[%emt 0:00:03]} 12. O-O {[%emt 0:00:03]} O-O {[%emt 0:00:02]} 13. Rfc1 {[%emt 0:00:07]} Rac8 {[%emt 0:00:15]} 14. Na4 {[%emt 0:00:07]} Nd7 {[%emt 0:00:10]} 15. a3 {[%emt 0:00:57]} Na5 {[%emt 0:00:31]} 16. Nd2 {[%emt 0:00:28]} b5 {[%emt 0:01:22]} 17. b4 {[%emt 0:00:16]} bxa4 {[%emt 0:00:59]} 18. bxa5 {[%emt 0:02:11]} Rc6 {[%emt 0:00:01]} 19. Rxc6 {[%emt 0:00:13]} Qxc6 {[%emt 0:00:54]} 20. Rb1 {[%emt 0:00:02]} Rc8 {[%emt 0:00:03]} 21. g3 {[%emt 0:00:29]} h6 {[%emt 0:00:21]} 22. Nf3 {[%emt 0:00:37]} Qc4 {[%emt 0:00:29]} 23. Qd2 {[%emt 0:02:27]} f6 {[%emt 0:00:36]} 24. Qb4 {[%emt 0:00:55]} Kf7 {[%emt 0:01:29]} 25. Kg2 {[%emt 0:00:44]} Rb8 {[%emt 0:03:08]} 26. Qxc4 {[%emt 0:00:48]} dxc4 {[%emt 0:00:07]} 27. Rc1 {[%emt 0:00:04]} Rc8 {[%emt 0:00:12]} 28. Nd2 {[%emt 0:00:18]} c3 {[%emt 0:00:04]} 29. Ne4 {[%emt 0:00:04]} Rb8 {[%emt 0:00:02]} 30. Rxc3 {[%emt 0:01:28]} Rb5 {[%emt 0:00:16]} 31. Nd6+ {[%emt 0:00:10]} Ke7 {[%emt 0:00:14]} 32. Nxb5 {[%emt 0:00:02]} axb5 {[%emt 0:00:01]} 33. a6 {[%emt 0:00:01]} Nb6 {[%emt 0:00:02]} 34. Rc7+ {[%emt 0:00:08]} Kd6 {[%emt 0:00:20]} 35. Rb7 {[%emt 0:00:07]} Kc6 {[%emt 0:00:02]} 36. Rxg7 {[%emt 0:00:07]} b4 {[%emt 0:00:06]} 37. axb4 {[%emt 0:00:02]} a3 {[%emt 0:00:02]} 38. b5+ {[%emt 0:00:01]} Kxb5 {[%emt 0:00:34]} 39. a7 {[%emt 0:00:06]} a2 {[%emt 0:00:06]} 40. Rb7 {[%emt 0:00:03]} *

[Event "56th Biel Festival Rapid 2023"]
[Site "Biel"]
[Date "2024.04.13"]
[Round "2.39"]
[White "Arpa, Enes Salih"]
[Black "Malli, Shiivesh Sunil"]
[Result "1/2-1/2"]
[WhiteElo "1349"]
[BlackElo "1835"]
[PlyCount "108"]
[EventDate "2023.07.16"]
[EventType "swiss"]
[EventCountry "SUI"]
[TimeControl "900+5"]

1. e4 {[%emt 0:00:03]} d5 {[%emt 0:00:03]} 2. exd5 {[%emt 0:00:02]} Nf6 {[%emt 0:00:01]} 3. Nc3 {[%emt 0:00:04]} Nxd5 {[%emt 0:00:04]} 4. Nxd5 {[%emt 0:00:05]} Qxd5 {[%emt 0:00:03]} 5. Qf3 {[%emt 0:00:03]} Qxf3 {[%emt 0:00:05]} 6. Nxf3 {[%emt 0:00:03]} Nc6 {[%emt 0:00:02]} 7. Bb5 {[%emt 0:00:15]} Bd7 {[%emt 0:00:06]} 8. c3 {[%emt 0:00:27]} O-O-O {[%emt 0:00:06]} 9. d4 {[%emt 0:00:31]} f6 {[%emt 0:00:08]} 10. Bf4 {[%emt 0:00:39]} e6 {[%emt 0:00:12]} 11. O-O-O {[%emt 0:00:15]} Bd6 {[%emt 0:00:12]} 12. Bxd6 {[%emt 0:00:12]} cxd6 {[%emt 0:00:03]} 13. d5 {[%emt 0:00:29]} exd5 {[%emt 0:00:16]} 14. Rxd5 {[%emt 0:03:01]} Bg4 {[%emt 0:00:06]} 15. Rd3 {[%emt 0:00:05]} Ne5 {[%emt 0:00:12]} 16. Nxe5 {[%emt 0:00:10]} dxe5 {[%emt 0:00:02]} 17. Rxd8+ {[%emt 0:00:17]} Rxd8 {[%emt 0:00:02]} 18. f3 {[%emt 0:00:02]} Bf5 {[%emt 0:00:29]} 19. Rd1 {[%emt 0:00:06]} Rxd1+ {[%emt 0:00:58]} 20. Kxd1 {[%emt 0:00:02]} Kc7 {[%emt 0:00:02]} 21. Kd2 {[%emt 0:00:10]} Kb6 {[%emt 0:00:01]} 22. Bd3 {[%emt 0:00:11]} Bxd3 {[%emt 0:00:05]} 23. Kxd3 {[%emt 0:00:02]} f5 {[%emt 0:00:12]} 24. g4 {[%emt 0:00:18]} g6 {[%emt 0:00:02]} 25. Kc4 {[%emt 0:01:00]} Kc6 {[%emt 0:00:02]} 26. a4 {[%emt 0:01:34]} a6 {[%emt 0:01:36]} 27. h4 {[%emt 0:01:49]} e4 {[%emt 0:00:45]} 28. gxf5 {[%emt 0:00:54]} exf3 {[%emt 0:00:03]} 29. Kd3 {[%emt 0:00:02]} gxf5 {[%emt 0:00:07]} 30. Ke3 {[%emt 0:00:03]} f2 {[%emt 0:00:14]} 31. Kxf2 {[%emt 0:00:02]} Kd5 {[%emt 0:00:01]} 32. b3 {[%emt 0:00:48]} Ke4 {[%emt 0:00:06]} 33. Ke2 {[%emt 0:01:37]} f4 {[%emt 0:00:02]} 34. h5 {[%emt 0:00:13]} f3+ {[%emt 0:00:06]} 35. Kf2 {[%emt 0:00:13]} Kd3 {[%emt 0:00:02]} 36. c4 {[%emt 0:00:03]} Kc3 {[%emt 0:00:50]} 37. Kxf3 {[%emt 0:00:04]} Kxb3 {[%emt 0:00:01]} 38. Kf4 {[%emt 0:00:03]} Kxc4 {[%emt 0:00:02]} 39. Kg5 {[%emt 0:00:02]} b5 {[%emt 0:00:01]} 40. axb5 {[%emt 0:00:20]} axb5 {[%emt 0:00:01]} 41. Kh6 {[%emt 0:00:04]} b4 {[%emt 0:00:06]} 42. Kxh7 {[%emt 0:00:02]} b3 {[%emt 0:00:00]} 43. Kg8 {[%emt 0:00:32]} b2 {[%emt 0:00:00]} 44. h6 {[%emt 0:00:01]} b1=Q {[%emt 0:00:01]} 45. h7 {[%emt 0:00:02]} Qg6+ {[%emt 0:00:12]} 46. Kh8 {[%emt 0:00:03]} Qh6 {[%emt 0:00:09]} 47. Kg8 {[%emt 0:00:02]} Qe6+ {[%emt 0:00:46]} 48. Kg7 {[%emt 0:00:03]} Qe7+ {[%emt 0:00:06]} 49. Kg8 {[%emt 0:00:03]} Qg5+ {[%emt 0:00:26]} 50. Kh8 {[%emt 0:00:03]} Qe7 {[%emt 0:00:17]} 51. Kg8 {[%emt 0:00:04]} Kd5 {[%emt 0:02:00]} 52. h8=Q {[%emt 0:00:17]} Ke6 {[%emt 0:00:03]} 53. Qh6+ {[%emt 0:00:30]} Kd7 {[%emt 0:00:28]} 54. Qf8 {[%emt 0:00:34]} Qxf8+ {[%emt 0:00:18]} 1/2-1/2

[Event "56th Biel Festival Rapid 2023"]
[Site "Biel"]
[Date "2024.04.13"]
[Round "2.40"]
[White "Lang, Fabian"]
[Black "Claude Jean-Pierre"]
[Result "*"]
[WhiteElo "1914"]
[BlackElo "1401"]
[PlyCount "49"]
[EventDate "2023.07.16"]
[EventType "swiss"]
[EventCountry "SUI"]
[TimeControl "900+5"]

1. d4 {[%emt 0:00:05]} d5 {[%emt 0:00:09]} 2. Nf3 {[%emt 0:00:02]} Nf6 {[%emt 0:00:10]} 3. e3 {[%emt 0:00:05]} e6 {[%emt 0:00:09]} 4. Bd3 {[%emt 0:00:00]} c5 {[%emt 0:00:10]} 5. c3 {[%emt 0:00:00]} Nc6 {[%emt 0:00:09]} 6. Nbd2 {[%emt 0:00:01]} cxd4 {[%emt 0:00:09]} 7. exd4 {[%emt 0:00:02]} Be7 {[%emt 0:00:07]} 8. O-O {[%emt 0:00:04]} O-O {[%emt 0:00:10]} 9. Ne5 {[%emt 0:00:33]} Qc7 {[%emt 0:00:14]} 10. f4 {[%emt 0:00:31]} Nxe5 {[%emt 0:00:20]} 11. fxe5 {[%emt 0:00:02]} Ne8 {[%emt 0:00:31]} 12. Qh5 {[%emt 0:00:31]} h6 {[%emt 0:01:12]} 13. Nf3 {[%emt 0:00:47]} Nf6 {[%emt 0:00:59]} 14. exf6 {[%emt 0:00:20]} Bxf6 {[%emt 0:00:14]} 15. Ne5 {[%emt 0:01:12]} Bxe5 {[%emt 0:00:24]} 16. dxe5 {[%emt 0:00:03]} f5 {[%emt 0:00:29]} 17. exf6 {[%emt 0:00:24]} Qf7 {[%emt 0:00:25]} 18. fxg7 {[%emt 0:01:32]} Qxg7 {[%emt 0:02:18]} 19. Rxf8+ {[%emt 0:00:16]} Qxf8 {[%emt 0:01:05]} 20. Bxh6 {[%emt 0:00:23]} Qc5+ {[%emt 0:00:31]} 21. Kh1 {[%emt 0:00:06]} Qe7 {[%emt 0:00:34]} 22. Rf1 {[%emt 0:01:44]} Bd7 {[%emt 0:00:09]} 23. Qg6+ {[%emt 0:00:40]} Kh8 {[%emt 0:00:24]} 24. Rf7 {[%emt 0:00:08]} Rg8 {[%emt 0:00:32]} 25. Qh7# {[%emt 0:00:05]} *

[Event "56th Biel Festival Rapid 2023"]
[Site "Biel"]
[Date "2024.04.13"]
[Round "2.41"]
[White "Settegrana Miro"]
[Black "Ragios, Konstantinos"]
[Result "0-1"]
[WhiteElo "1301"]
[BlackElo "1925"]
[PlyCount "106"]
[EventDate "2023.07.16"]
[EventType "swiss"]
[EventCountry "SUI"]
[TimeControl "900+5"]

1. e4 {[%emt 0:00:04]} e5 {[%emt 0:00:01]} 2. Nc3 {[%emt 0:00:02]} Nc6 {[%emt 0:00:08]} 3. Bc4 {[%emt 0:00:01]} Bc5 {[%emt 0:00:16]} 4. Qg4 {[%emt 0:00:02]} g6 {[%emt 0:01:03]} 5. Qf3 {[%emt 0:00:02]} Nf6 {[%emt 0:00:53]} 6. Nge2 {[%emt 0:00:02]} d6 {[%emt 0:00:16]} 7. h3 {[%emt 0:00:11]} h6 {[%emt 0:01:43]} 8. Nd5 {[%emt 0:00:53]} Nxd5 {[%emt 0:00:40]} 9. Bxd5 {[%emt 0:00:04]} Qe7 {[%emt 0:00:24]} 10. O-O {[%emt 0:00:22]} Be6 {[%emt 0:00:33]} 11. Nc3 {[%emt 0:00:28]} Nd4 {[%emt 0:00:35]} 12. Qd1 {[%emt 0:00:56]} c6 {[%emt 0:00:59]} 13. Bxe6 {[%emt 0:00:27]} fxe6 {[%emt 0:00:50]} 14. Na4 {[%emt 0:00:24]} Bb6 {[%emt 0:00:04]} 15. c3 {[%emt 0:00:14]} Nb5 {[%emt 0:00:12]} 16. Nxb6 {[%emt 0:00:13]} axb6 {[%emt 0:00:01]} 17. a4 {[%emt 0:00:02]} Nc7 {[%emt 0:01:33]} 18. d4 {[%emt 0:00:08]} exd4 {[%emt 0:00:31]} 19. cxd4 {[%emt 0:00:02]} h5 {[%emt 0:00:48]} 20. Qb3 {[%emt 0:00:29]} b5 {[%emt 0:00:02]} 21. Qg3 {[%emt 0:00:07]} bxa4 {[%emt 0:01:13]} 22. Qxg6+ {[%emt 0:00:11]} Kd7 {[%emt 0:00:05]} 23. Bg5 {[%emt 0:00:11]} Qh7 {[%emt 0:00:12]} 24. Qxh7+ {[%emt 0:01:30]} Rxh7 {[%emt 0:00:01]} 25. b3 {[%emt 0:00:40]} a3 {[%emt 0:00:01]} 26. Ra2 {[%emt 0:00:05]} Nb5 {[%emt 0:00:28]} 27. Rfa1 {[%emt 0:00:41]} Nxd4 {[%emt 0:01:29]} 28. Rxa3 {[%emt 0:00:06]} Rg8 {[%emt 0:00:06]} 29. Ra7 {[%emt 0:00:27]} Kc7 {[%emt 0:00:09]} 30. Be3 {[%emt 0:01:07]} Nc2 {[%emt 0:00:09]} 31. Rc1 {[%emt 0:00:08]} Nxe3 {[%emt 0:00:03]} 32. fxe3 {[%emt 0:00:01]} Rhg7 {[%emt 0:00:09]} 33. Rc2 {[%emt 0:00:12]} Rg3 {[%emt 0:00:05]} 34. Re2 {[%emt 0:00:06]} Rxh3 {[%emt 0:00:09]} 35. Ra5 {[%emt 0:00:13]} Rh4 {[%emt 0:00:02]} 36. Kf2 {[%emt 0:00:36]} e5 {[%emt 0:00:07]} 37. Ra4 {[%emt 0:00:18]} Rhg4 {[%emt 0:00:22]} 38. Kg1 {[%emt 0:00:16]} Rg3 {[%emt 0:00:20]} 39. Ra1 {[%emt 0:00:12]} R8g4 {[%emt 0:00:25]} 40. Ra4 {[%emt 0:00:16]} Rf3 {[%emt 0:00:08]} 41. Kh2 {[%emt 0:00:25]} Rf7 {[%emt 0:00:02]} 42. Rea2 {[%emt 0:00:16]} Rfg7 {[%emt 0:00:16]} 43. Rf2 {[%emt 0:00:24]} h4 {[%emt 0:00:23]} 44. Kg1 {[%emt 0:00:23]} h3 {[%emt 0:00:12]} 45. Raa2 {[%emt 0:00:20]} Kb6 {[%emt 0:00:13]} 46. Kh2 {[%emt 0:00:07]} Rxg2+ {[%emt 0:00:03]} 47. Rxg2 {[%emt 0:00:06]} Rxg2+ {[%emt 0:00:01]} 48. Rxg2 {[%emt 0:00:13]} hxg2 {[%emt 0:00:03]} 49. Kxg2 {[%emt 0:00:02]} Kb5 {[%emt 0:00:12]} 50. Kg3 {[%emt 0:00:01]} Kb4 {[%emt 0:00:09]} 51. Kg4 {[%emt 0:00:01]} Kxb3 {[%emt 0:00:02]} 52. Kf5 {[%emt 0:00:01]} Kc4 {[%emt 0:00:05]} 53. Ke6 {[%emt 0:00:07]} Kc5 {[%emt 0:00:01]} 0-1

[Event "56th Biel Festival Rapid 2023"]
[Site "Biel"]
[Date "2024.04.13"]
[Round "2.42"]
[White "Pheng, Wissam"]
[Black "Trubini, Timon"]
[Result "1-0"]
[WhiteElo "1940"]
[BlackElo "1587"]
[PlyCount "41"]
[EventDate "2023.07.16"]
[EventType "swiss"]
[EventCountry "SUI"]
[TimeControl "900+5"]

1. e4 {[%emt 0:00:04]} c5 {[%emt 0:00:02]} 2. b3 {[%emt 0:00:01]} Nc6 {[%emt 0:00:11]} 3. Bb2 {[%emt 0:00:01]} e6 {[%emt 0:00:02]} 4. Nf3 {[%emt 0:00:02]} d5 {[%emt 0:00:02]} 5. Bb5 {[%emt 0:01:03]} a6 {[%emt 0:00:14]} 6. Bxc6+ {[%emt 0:00:05]} bxc6 {[%emt 0:00:01]} 7. Nc3 {[%emt 0:00:21]} d4 {[%emt 0:00:03]} 8. Na4 {[%emt 0:00:04]} e5 {[%emt 0:00:31]} 9. Nxe5 {[%emt 0:01:48]} Qg5 {[%emt 0:00:02]} 10. Nf3 {[%emt 0:00:38]} Qxg2 {[%emt 0:00:16]} 11. Rg1 {[%emt 0:00:05]} Qh3 {[%emt 0:00:02]} 12. Rg3 {[%emt 0:00:23]} Qe6 {[%emt 0:00:11]} 13. Qe2 {[%emt 0:00:05]} Nf6 {[%emt 0:00:05]} 14. Ng5 {[%emt 0:00:29]} Qe5 {[%emt 0:00:16]} 15. O-O-O {[%emt 0:02:16]} Bd6 {[%emt 0:02:33]} 16. Nb6 {[%emt 0:00:19]} Rb8 {[%emt 0:00:29]} 17. Nc4 {[%emt 0:00:02]} Qe7 {[%emt 0:00:02]} 18. e5 {[%emt 0:00:25]} Nd5 {[%emt 0:01:10]} 19. Nxd6+ {[%emt 0:00:10]} Kf8 {[%emt 0:00:24]} 20. Ngxf7 {[%emt 0:01:11]} Rg8 {[%emt 0:00:12]} 21. Qf3 {[%emt 0:00:10]} 1-0